bitfinex-derivatives/quotes_BNBF0:USTF0_20250510
["timestamp","ask_amount","ask_price","bid_price","bid_amount"]
[1746868746014,0.25507069,658.44,657.28,0.90274823]
[1746868746216,0.25507069,658.44,657.29,0.90274823]
[1746868746515,0.25507069,658.44,657.3,0.90294317]
[1746868746709,0.26445075,658.43,657.25,0.26445075]
[1746868746913,0.25507069,658.42,657.26,0.90294469]
[1746868747111,0.25507069,658.42,657.27,0.90294469]
[1746868747318,0.25507069,658.42,657.1,0.30436767]
[1746868747514,0.25507069,658.42,657.11,0.90302823]
[1746868747713,0.25507069,658.42,657.26,0.26446281]
[1746868747912,0.25507069,658.42,657.1,0.30436767]
[1746868748110,0.25507069,658.42,657.11,0.90309331]
[1746868748408,0.25507069,658.42,657.26,0.26447788]
[1746868748613,0.25507069,658.42,657.27,0.90309331]
[1746868748811,0.25507069,658.42,657.1,0.30436767]
[1746868749015,0.25507069,658.42,657.11,0.90316348]
[1746868749212,0.25507069,658.42,657.12,0.90316348]
[1746868749417,0.25507069,658.42,657.13,0.90316348]
[1746868749617,0.25507069,658.42,657.11,0.26454423]
[1746868749618,0.26447688,658.41,657.14,0.90316348]
[1746868749817,0.25507069,658.4,657.15,0.90316348]
[1746868750118,0.25507069,658.4,657.16,0.90316348]
[1746868750416,0.25507069,658.4,657.17,0.90316348]
[1746868750619,0.25507069,658.4,657.18,0.90316348]
[1746868750811,0.25507069,658.4,657.19,0.90316348]
[1746868751114,0.25507069,658.4,657.2,0.90316348]
[1746868751313,0.25507069,658.4,657.21,0.90316348]
[1746868751510,0.25507069,658.4,657.22,0.90316348]
[1746868751713,0.25507069,658.4,657.23,0.90316348]
[1746868751912,0.25507069,658.4,657.24,0.90316348]
[1746868752110,0.25507069,658.4,657.25,0.90316348]
[1746868752320,0.25507069,658.4,657.26,0.90347523]
[1746868752519,0.25507069,658.4,657.27,0.90347523]
[1746868752718,0.25507069,658.4,657.28,0.90347523]
[1746868752919,0.25507069,658.4,657.29,0.90347523]
[1746868753117,0.25507069,658.4,657.3,0.90347523]
[1746868753313,0.25507069,658.44,657.31,0.90347523]
[1746868753517,0.25507069,658.44,657.32,0.90347523]
[1746868753717,0.25507069,658.44,657.33,0.90347523]
[1746868753914,0.25507069,658.44,657.34,0.90347523]
[1746868754114,0.25507069,658.44,657.35,0.90347523]
[1746868754318,0.25507069,658.44,657.36,0.90347523]
[1746868754615,0.25507069,658.44,657.37,0.90347523]
[1746868754817,0.25507069,658.44,657.38,0.90347523]
[1746868755120,0.25507069,658.44,657.39,0.90379276]
[1746868755322,0.30374364,658.45,657.4,0.90379276]
[1746868755515,0.30374364,658.45,657.41,0.90379276]
[1746868755716,0.30374364,658.45,657.42,0.90379276]
[1746868755918,0.30374364,658.45,657.43,0.90379276]
[1746868756119,0.30374364,658.45,657.44,0.90379276]
[1746868756316,0.30374364,658.45,657.45,0.90385468]
[1746868756517,0.30374364,658.45,657.46,0.90385468]
[1746868756719,0.30374364,658.45,657.24,0.26441559]
[1746868756924,0.30374364,658.45,657.25,0.90391017]
[1746868757123,0.30374364,658.45,657.26,0.90391017]
[1746868757325,0.30374364,658.45,657.27,0.90391017]
[1746868757623,0.30374364,658.45,657.28,0.90391017]
[1746868757819,0.30374364,658.45,657.29,0.90391017]
[1746868758123,0.26441559,658.49,657.3,0.90391017]
[1746868758325,1.92136586,659.29,657.31,0.90391017]
[1746868758522,1.92136586,659.29,657.32,0.90391017]
[1746868758823,0.25518067,659.28,657.33,0.90391017]
[1746868759023,0.25518067,659.28,657.34,0.90391017]
[1746868759224,0.25518067,659.27,657.35,0.90391017]
[1746868759425,0.25518067,659.27,657.36,0.90391017]
[1746868759723,0.25518067,659.26,657.37,0.90391017]
[1746868760023,0.25518067,659.26,657.38,0.90391017]
[1746868760219,0.25518067,659.26,657.39,0.90391017]
[1746868760423,0.25518067,659.25,657.4,0.90391017]
[1746868760623,0.25518067,659.25,657.41,0.90391017]
[1746868760820,0.25518067,659.26,657.42,0.90391017]
[1746868761124,0.25518067,659.26,657.43,0.90391017]
[1746868761326,0.25518067,659.26,656.67,0.9548664]
[1746868761624,0.26432019,659.25,657.35,0.26432019]
[1746868761824,0.26432019,659.25,656.68,1.18304241]
[1746868762022,0.26432019,659.25,656.69,0.90373932]
[1746868762223,0.25518067,659.24,656.7,0.90373932]
[1746868762424,0.25518067,659.24,656.71,0.27930309]
[1746868763728,0.25518067,659.23,656.72,0.27930309]
[1746868764023,0.25518067,659.22,656.73,0.27930309]
[1746868764429,0.25518067,659.21,656.74,1.1830319]
[1746868764623,0.25518067,659.21,656.75,0.90369076]
[1746868764824,0.25518067,659.21,656.76,0.90369076]
[1746868765023,0.25518067,659.24,656.77,0.90369076]
[1746868765223,0.25518067,659.24,656.78,0.90369076]
[1746868765422,0.25518067,659.23,656.79,0.90369076]
[1746868765626,0.25518067,659.23,656.8,0.90369076]
[1746868765828,0.25518067,659.22,656.81,0.90369076]
[1746868766028,0.25518067,659.22,656.82,0.90369076]
[1746868766323,0.25518067,659.21,656.83,0.90369076]
[1746868766523,0.25518067,659.21,656.84,0.90369076]
[1746868766727,0.25518067,659.21,656.85,0.90369076]
[1746868767026,0.25518067,659.24,656.86,0.90369076]
[1746868767228,0.25518067,659.2,656.87,0.90369076]
[1746868767429,0.25518067,659.2,656.88,0.90369076]
[1746868767628,0.25518067,659.24,656.89,0.90369076]
[1746868767833,0.26435633,659.19,656.9,0.90369076]
[1746868768030,0.26435633,659.19,656.91,0.90369076]
[1746868768335,0.25518067,659.18,656.92,1.18299385]
[1746868768530,0.25518067,659.18,656.93,0.90369076]
[1746868768833,0.25518067,659.18,656.94,0.90369076]
[1746868769033,0.25518067,659.18,656.95,1.18299385]
[1746868769234,0.25518067,659.18,656.96,0.90369076]
[1746868769435,0.25518067,659.18,656.97,1.18299385]
[1746868769635,0.25518067,659.18,656.98,0.90369076]
[1746868769835,0.25518067,659.18,656.99,1.18299385]
[1746868770034,0.25518067,659.18,657.0,0.90369076]
[1746868770233,0.25518067,659.18,657.01,0.90369076]
[1746868770436,0.25518067,659.18,657.02,0.90369076]
[1746868770637,0.25518067,659.18,657.04,0.30439547]
[1746868770837,0.30341646,659.16,657.05,0.90369076]
[1746868771033,0.30341646,659.16,657.06,0.90369076]
[1746868771232,0.25518067,659.15,657.07,1.18299385]
[1746868771432,0.25518067,659.15,657.08,0.90369076]
[1746868771639,0.25518067,659.14,657.09,0.90179012]
[1746868771839,0.25518067,659.13,657.1,1.18109321]
[1746868772037,0.25518067,659.13,657.11,0.90179012]
[1746868772234,0.25518067,659.13,657.12,0.90179012]
[1746868772437,0.25518067,659.12,657.13,0.90179012]
[1746868772738,0.25518067,659.11,657.14,0.90179012]
[1746868772938,0.25518067,659.11,657.15,0.90179012]
[1746868773142,0.25518067,659.1,657.16,0.90179012]
[1746868773339,0.25518067,659.1,657.17,1.20573177]
[1746868773535,0.25518067,659.14,657.18,0.90139652]
[1746868773738,0.2643222,659.09,657.19,0.90139652]
[1746868773938,0.25518067,659.08,657.2,1.18069961]
[1746868774235,0.25518067,659.08,657.21,0.90139652]
[1746868774439,0.25518067,659.08,657.22,0.90139652]
[1746868774641,0.25518067,659.08,657.23,0.90139652]
[1746868774840,0.25518067,659.08,657.24,0.90139652]
[1746868775038,0.25518067,659.08,657.25,0.90139652]
[1746868775244,0.25518067,659.08,657.26,0.90139652]
[1746868775441,0.25518067,659.08,657.27,1.20568547]
[1746868775637,0.25518067,659.08,657.28,0.90139652]
[1746868775842,0.25518067,659.08,657.29,1.18069961]
[1746868776039,0.25518067,659.08,657.3,0.90139652]
[1746868776245,0.25518067,659.08,657.31,0.90139652]
[1746868776445,0.25518067,659.08,657.32,0.90139652]
[1746868776644,0.26430815,659.07,657.33,0.90139652]
[1746868776844,0.26430815,659.07,657.34,0.90059433]
[1746868777045,0.25518067,659.06,657.35,0.90059433]
[1746868777244,0.25518067,659.06,657.36,0.90059433]
[1746868777442,0.25518067,659.06,657.37,0.90059433]
[1746868777647,0.25518067,659.06,657.38,0.90059433]
[1746868777842,0.25518067,659.06,657.39,0.90059433]
[1746868778041,0.26430815,659.07,657.4,0.90059433]
[1746868778244,0.26430815,659.07,657.41,0.90059433]
[1746868778446,0.26430815,659.07,657.42,0.90059433]
[1746868778643,0.26430815,659.07,657.43,0.90059433]
[1746868778844,0.26430815,659.07,657.44,0.90059433]
[1746868779049,0.26430815,659.07,657.45,0.90059433]
[1746868779250,0.26430815,659.07,657.46,0.90059433]
[1746868779449,0.30341646,659.16,657.47,0.90059433]
[1746868779649,0.26426098,659.06,657.48,0.90059433]
[1746868779846,0.26426098,659.06,657.49,0.90059433]
[1746868780046,0.30341646,659.16,657.5,0.90059433]
[1746868780246,0.30341646,659.16,657.51,0.90059433]
[1746868780447,0.30341646,659.16,657.52,0.90059433]
[1746868780646,0.51944608,659.15,657.53,0.90059433]
[1746868780846,0.30343027,659.13,657.54,0.90059433]
[1746868781052,0.30343027,659.13,657.55,0.90059433]
[1746868781346,0.30343027,659.13,657.56,0.90059433]
[1746868781645,0.30343027,659.13,657.57,0.90059433]
[1746868781850,0.30343027,659.13,657.58,0.90059433]
[1746868782046,0.30343027,659.13,657.59,0.89904033]
[1746868782250,0.30343027,659.13,657.6,0.89904033]
[1746868782445,0.30343027,659.13,657.61,0.89904033]
[1746868782647,0.26424794,659.12,657.62,0.89904033]
[1746868782845,0.30344409,659.1,657.63,0.89904033]
[1746868783045,0.30344409,659.1,657.64,0.89904033]
[1746868783345,0.30344409,659.1,657.65,0.89904033]
[1746868783547,0.30344409,659.1,657.39,0.26424794]
[1746868783548,0.30344409,659.1,657.66,0.89904033]
[1746868783746,0.30344409,659.1,657.67,0.89904033]
[1746868783947,0.30344409,659.1,657.39,0.26424794]
[1746868784144,0.30344409,659.1,657.4,1.20293591]
[1746868784348,0.30344409,659.1,657.41,1.20293128]
[1746868784552,0.30344409,659.1,657.42,0.89870713]
[1746868784745,0.30344409,659.1,657.43,0.89870713]
[1746868784949,0.30344409,659.1,657.44,0.89870713]
[1746868785150,0.30344409,659.1,657.41,0.30422415]
[1746868785352,0.30344409,659.1,657.42,0.89851331]
[1746868785547,0.30344409,659.1,657.43,1.2027282]
[1746868785744,0.26427904,659.09,657.44,0.89851331]
[1746868786252,0.3034579,659.07,657.45,0.30420564]
[1746868786446,0.25525243,659.06,657.46,1.17769204]
[1746868786747,0.25525243,659.06,657.47,1.17769204]
[1746868786946,0.25525243,659.06,657.48,0.89851331]
[1746868787153,0.25525243,659.06,657.49,0.89851331]
[1746868787352,0.30347171,659.04,657.5,0.89851331]
[1746868787546,0.30347171,659.04,657.51,0.89807015]
[1746868787751,0.30347171,659.04,657.45,0.30420564]
[1746868787950,0.25525243,659.03,657.52,0.27918484]
[1746868788151,0.30348553,659.01,657.53,0.89806746]
[1746868788354,0.30348553,659.01,657.54,0.89806746]
[1746868788553,0.30348553,659.01,657.55,0.89806746]
[1746868788849,0.30348553,659.01,657.56,0.89806746]
[1746868788850,0.51949262,659.0,657.56,0.89806746]
[1746868789053,0.51949262,659.0,657.57,0.89806746]
[1746868789253,0.30349474,658.99,657.58,0.89808278]
[1746868789453,0.55871936,658.99,657.59,0.89808278]
[1746868789753,0.25522462,658.98,657.6,1.17726717]
[1746868789953,0.25522462,658.98,657.61,0.89808278]
[1746868790154,0.25522462,658.98,657.62,1.17726717]
[1746868790355,0.25522462,658.98,657.63,0.89808278]
[1746868790553,0.25522462,658.98,657.64,0.89808278]
[1746868790754,0.30350395,658.97,657.65,0.89808278]
[1746868791050,0.30350395,658.97,657.66,0.89808278]
[1746868791249,0.30350395,658.97,657.67,0.89808278]
[1746868791448,0.30350395,658.97,657.68,0.89808278]
[1746868791650,0.30350395,658.97,657.65,0.27918439]
[1746868791651,0.26425797,658.96,657.69,0.89808278]
[1746868791955,0.30351316,658.95,657.7,0.89808278]
[1746868792254,0.25522462,658.94,657.53,0.26425797]
[1746868792453,0.25522462,658.94,657.54,0.89778002]
[1746868792651,0.25522462,658.94,657.55,0.89778002]
[1746868793055,0.25522462,658.94,657.56,0.27916089]
[1746868793255,0.25522462,658.94,657.57,0.89778002]
[1746868793554,0.25522462,658.94,657.58,0.89778002]
[1746868793755,0.25522462,658.94,657.59,1.17694091]
[1746868793956,0.25522462,658.94,657.6,0.89778002]
[1746868794157,0.25522462,658.94,657.61,1.17694091]
[1746868794351,0.25522462,658.94,657.62,0.89778002]
[1746868794551,0.25522462,658.94,657.63,0.89778002]
[1746868794754,0.25522462,658.94,657.64,0.89761349]
[1746868794955,0.25522462,658.94,657.65,0.89761349]
[1746868795156,0.25522462,658.94,657.66,0.89761349]
[1746868795357,0.25522462,658.94,657.67,0.89761349]
[1746868795658,0.25522462,658.94,657.68,0.89761314]
[1746868795858,0.25522462,658.94,657.69,0.89761446]
[1746868796053,0.25522462,658.94,657.7,0.89761356]
[1746868796355,0.25522462,658.94,657.71,0.89761356]
[1746868796556,0.25522462,658.94,657.72,0.89761356]
[1746868796757,0.25522462,658.94,657.73,0.89761356]
[1746868796957,0.25522462,658.94,657.74,0.89761356]
[1746868797156,0.25522462,658.94,657.58,0.26424593]
[1746868797352,0.25522462,658.94,657.59,1.17654668]
[1746868797556,0.25522462,658.94,657.6,0.89740871]
[1746868797758,0.25522462,658.94,657.61,0.89740871]
[1746868798058,0.25522462,658.94,657.62,0.89740871]
[1746868798258,0.25522462,658.94,657.63,0.89740871]
[1746868798454,0.25522462,658.94,657.64,0.89740871]
[1746868798660,0.25522462,658.94,657.65,0.89740871]
[1746868798854,0.30351316,658.95,657.66,0.89740871]
[1746868799060,0.30351316,658.95,657.67,0.89740871]
[1746868799254,0.30351316,658.95,657.68,0.89740871]
[1746868799460,0.30351316,658.95,657.69,0.89740871]
[1746868799661,0.30351316,658.95,657.7,0.89740871]
[1746868799961,0.30351316,658.95,657.71,0.89740871]
[1746868800260,0.30351316,658.95,657.72,0.89740871]
[1746868800455,0.30351316,658.95,657.73,0.89740871]
[1746868800655,0.30351316,658.95,657.74,0.89740871]
[1746868800960,0.30351316,658.95,657.75,0.89740871]
[1746868801156,0.30351316,658.95,657.6,0.26424392]
[1746868801361,0.30351316,658.95,657.61,0.8973009]
[1746868801560,0.30351316,658.95,657.62,0.8973009]
[1746868801758,0.30351316,658.95,657.63,0.8973009]
[1746868801962,0.30351316,658.95,657.64,0.8973009]
[1746868802158,0.30351316,658.95,657.65,0.8973009]
[1746868802458,0.30351316,658.95,657.66,0.8973009]
[1746868802657,0.30351316,658.95,657.67,0.8973009]
[1746868802862,0.30351316,658.95,657.68,0.8973009]
[1746868803058,0.30351316,658.95,657.69,0.8973009]
[1746868803261,0.30351316,658.95,657.7,0.8973009]
[1746868803458,0.30351316,658.95,657.71,0.8973009]
[1746868803659,0.30351316,658.95,657.72,0.8973009]
[1746868803858,0.30351316,658.95,657.73,0.8973009]
[1746868804159,0.30351316,658.95,657.74,0.8973009]
[1746868804359,0.30351316,658.95,657.75,0.8973009]
[1746868804664,0.30351316,658.95,657.76,0.8973009]
[1746868804859,0.30351316,658.95,657.77,0.8973009]
[1746868805063,0.30351316,658.95,657.78,0.8973009]
[1746868805264,0.30351316,658.95,657.79,0.8973009]
[1746868805467,0.30351316,658.95,657.8,0.8973009]
[1746868805661,0.30351316,658.95,657.81,0.8973009]
[1746868805861,0.30351316,658.95,657.82,0.8973009]
[1746868806062,0.30351316,658.95,657.83,0.8973009]
[1746868806267,0.30351316,658.95,657.84,0.8973009]
[1746868806468,0.30351316,658.95,657.85,0.8973009]
[1746868806667,0.30351316,658.95,657.86,0.8973009]
[1746868806864,0.30351316,658.95,657.72,0.26419678]
[1746868807062,0.30351316,658.95,657.73,0.89679503]
[1746868807367,0.30351316,658.95,657.74,0.89679503]
[1746868807567,0.30351316,658.95,657.75,0.89681577]
[1746868807867,0.30351316,658.95,657.76,0.89681577]
[1746868808069,0.30351316,658.95,657.77,0.89681577]
[1746868808268,0.30351316,658.95,657.78,0.89681577]
[1746868808465,0.30351316,658.95,657.79,0.89681577]
[1746868808669,0.30351316,658.95,657.8,0.89681577]
[1746868808871,0.30351316,658.95,657.81,0.89681577]
[1746868809064,0.30351316,658.95,657.82,0.89681577]
[1746868809267,0.30351316,658.95,657.83,0.89681577]
[1746868809468,0.30351316,658.95,657.84,0.89681577]
[1746868809665,0.30351316,658.95,657.72,0.26419678]
[1746868809966,0.30351316,658.95,657.73,0.89712442]
[1746868810168,0.30351316,658.95,657.74,0.89712442]
[1746868810368,0.30351316,658.95,657.75,0.8973862]
[1746868810670,0.30351316,658.95,657.76,0.8973862]
[1746868810871,0.30351316,658.95,657.77,0.89737621]
[1746868811069,0.30351316,658.95,657.78,0.89737621]
[1746868811264,0.30351316,658.95,657.79,0.8976224]
[1746868811466,0.30351316,658.95,657.8,0.8976224]
[1746868811666,0.30351316,658.95,657.81,0.8976224]
[1746868811871,0.30351316,658.95,657.82,0.8976224]
[1746868812072,0.30351316,658.95,657.83,0.8976224]
[1746868812371,0.30351316,658.95,657.84,0.89786027]
[1746868812574,0.30351316,658.95,657.85,0.89786027]
[1746868812772,0.30351316,658.95,657.86,0.89786027]
[1746868812972,0.30351316,658.95,657.76,0.26419678]
[1746868813173,0.30351316,658.95,657.77,0.89779051]
[1746868813374,0.30351316,658.95,657.76,0.26419678]
[1746868813570,0.30351316,658.95,657.77,0.89793182]
[1746868813774,0.30351316,658.95,657.78,0.89793182]
[1746868813974,0.30351316,658.95,657.79,0.89793182]
[1746868814175,0.30351316,658.95,657.8,0.89793182]
[1746868814375,0.30351316,658.95,657.81,0.89793182]
[1746868814576,0.30351316,658.95,657.82,0.89793182]
[1746868814774,0.30351316,658.95,657.83,0.89793182]
[1746868815070,0.30351316,658.95,657.84,0.89793182]
[1746868815269,0.30351316,658.95,657.76,0.26419678]
[1746868815270,0.30351316,658.95,657.85,0.89793182]
[1746868815470,0.30351316,658.95,657.86,0.89793182]
[1746868815674,0.30351316,658.95,657.87,0.89793182]
[1746868815874,0.30351316,658.95,657.79,0.26419578]
[1746868816069,0.30351316,658.95,657.8,0.89890197]
[1746868816270,0.30351316,658.95,657.81,0.89890197]
[1746868816573,0.30351316,658.95,657.82,0.89890197]
[1746868816769,0.30351316,658.95,657.83,0.89890197]
[1746868816974,0.30351316,658.95,657.84,0.89890197]
[1746868817175,0.30351316,658.95,657.85,0.89890197]
[1746868817374,0.30351316,658.95,657.86,0.89890197]
[1746868817577,0.30351316,658.95,657.87,0.89890197]
[1746868817770,0.30351316,658.95,657.88,0.89924038]
[1746868817974,0.30351316,658.95,657.89,0.89922994]
[1746868818177,0.30351316,658.95,657.9,0.89922994]
[1746868818377,0.30351316,658.95,657.91,0.89922994]
[1746868818576,0.30351316,658.95,657.92,0.89922994]
[1746868818779,0.30351316,658.95,657.45,0.30420564]
[1746868818971,0.30351316,658.95,657.46,0.89937933]
[1746868819175,0.25531039,658.94,657.47,0.89937933]
[1746868819374,0.25531039,658.94,657.46,0.27907452]
[1746868819574,0.30351316,658.95,657.48,0.27907452]
[1746868819776,0.30351316,658.95,657.49,0.89959101]
[1746868820079,0.30351316,658.95,657.5,0.89959101]
[1746868820279,0.30351316,658.95,657.51,0.89959101]
[1746868820478,0.30351316,658.95,657.52,1.17866553]
[1746868820676,0.30351316,658.95,657.53,1.20375964]
[1746868820980,0.30351316,658.95,657.55,0.30415937]
[1746868821183,0.30351316,658.95,657.56,0.89987641]
[1746868821376,0.30351316,658.95,657.55,0.30415937]
[1746868821377,0.30351316,658.95,657.58,0.3041455]
[1746868821876,0.30351316,658.95,657.59,0.89987641]
[1746868822081,0.30351316,658.95,657.6,1.20401266]
[1746868822279,0.30351316,658.95,657.61,0.89987641]
[1746868822581,0.30351316,658.95,657.62,1.20400341]
[1746868822784,0.30351316,658.95,657.63,1.17895093]
[1746868822978,0.30351316,658.95,657.64,0.89961605]
[1746868823182,0.30351316,658.95,657.65,0.89961605]
[1746868823382,0.30351316,658.95,657.66,0.89961605]
[1746868823677,0.30351316,658.95,657.67,1.20371993]
[1746868823881,0.30351316,658.95,657.68,1.2037153]
[1746868824183,0.30351316,658.95,657.69,1.20371068]
[1746868824480,0.30351316,658.95,657.7,1.17869057]
[1746868824684,0.30351316,658.95,657.71,0.89961605]
[1746868824887,0.30351316,658.95,657.72,0.899426]
[1746868825087,0.30351316,658.95,657.73,0.899426]
[1746868825388,0.30351316,658.95,657.74,1.17850052]
[1746868825687,0.30351316,658.95,657.75,1.17850052]
[1746868825889,0.30351316,658.95,657.76,0.899426]
[1746868826082,0.30351316,658.95,657.77,0.27907452]
[1746868826282,0.30351316,658.95,657.78,0.899426]
[1746868826488,0.30351316,658.95,657.77,0.27907452]
[1746868826788,0.30351316,658.95,657.78,0.89957963]
[1746868826990,0.30351316,658.95,657.79,0.89957963]
[1746868827189,0.30351316,658.95,657.8,0.89957963]
[1746868827389,0.30351316,658.95,657.81,0.89957963]
[1746868827589,0.30351316,658.95,657.82,0.89957963]
[1746868827790,0.30351316,658.95,657.83,0.89957963]
[1746868827985,0.30351316,658.95,657.84,0.89957963]
[1746868828184,0.30351316,658.95,657.85,0.89957963]
[1746868828388,0.30351316,658.95,657.86,0.89957963]
[1746868828689,0.30351316,658.95,657.87,0.89957963]
[1746868828891,0.30351316,658.95,657.88,0.89957963]
[1746868829089,0.30351316,658.95,657.89,0.89957963]
[1746868829290,0.30351316,658.95,657.9,0.89957963]
[1746868829489,0.30351316,658.95,657.91,0.89957963]
[1746868829690,0.30351316,658.95,657.92,0.89957963]
[1746868829889,0.30351316,658.95,657.93,0.89957963]
[1746868830090,0.30351316,658.95,657.94,0.89957963]
[1746868830390,0.30351316,658.95,657.95,0.89957963]
[1746868830585,0.30351316,658.95,657.96,0.89957963]
[1746868830789,0.30351316,658.95,657.97,0.89957963]
[1746868831086,0.30351316,658.95,657.98,0.89957963]
[1746868831290,0.30351316,658.95,657.99,0.89957963]
[1746868831489,0.30351316,658.95,657.71,0.26407649]
[1746868831689,0.30351316,658.95,657.72,0.89998073]
[1746868831889,0.30351316,658.95,657.73,1.17903651]
[1746868832092,0.30351316,658.95,657.74,0.89998073]
[1746868832289,0.30351316,658.95,657.75,0.89998073]
[1746868832589,0.30351316,658.95,657.76,0.27905578]
[1746868832794,0.30351316,658.95,657.77,0.89998073]
[1746868833593,0.30351316,658.95,657.78,0.27905578]
[1746868833889,0.30351316,658.95,657.79,0.89998073]
[1746868834295,0.30351316,658.95,657.8,0.27905578]
[1746868834492,0.30351316,658.95,657.81,0.89998073]
[1746868835094,0.30351316,658.95,657.82,0.89998073]
[1746868835295,0.30351316,658.95,657.83,0.89998073]
[1746868835491,0.30351316,658.95,657.84,0.89998073]
[1746868835695,0.30351316,658.95,657.85,0.89998073]
[1746868835896,0.30351316,658.95,657.86,0.89998073]
[1746868836096,0.30351316,658.95,657.87,0.89998073]
[1746868836298,0.30351316,658.95,657.88,0.89998073]
[1746868836499,0.30351316,658.95,657.89,0.89998073]
[1746868836699,0.30351316,658.95,657.9,0.89998073]
[1746868836899,0.30351316,658.95,657.91,0.89998073]
[1746868837099,0.30351316,658.95,657.92,0.89998073]
[1746868837300,0.30351316,658.95,657.93,0.9010566]
[1746868837499,0.30351316,658.95,657.94,0.9010566]
[1746868837697,0.30351316,658.95,657.95,0.9010566]
[1746868837895,0.30351316,658.95,657.96,0.9010566]
[1746868838100,0.30351316,658.95,657.97,0.9010566]
[1746868838300,0.30351316,658.95,657.98,0.9010566]
[1746868838596,0.30351316,658.95,657.99,0.9010566]
[1746868838897,0.30351316,658.95,657.79,0.26418074]
[1746868839101,0.30351316,658.95,657.8,0.90114756]
[1746868839299,0.30351316,658.95,657.81,0.90114756]
[1746868839502,0.30351316,658.95,657.82,0.90114756]
[1746868839696,0.30351316,658.95,657.83,0.90114756]
[1746868839901,0.30351316,658.95,657.84,0.90114756]
[1746868840096,0.30351316,658.95,657.85,0.90114756]
[1746868840301,0.30351316,658.95,657.86,0.90114756]
[1746868840501,0.30351316,658.95,657.87,0.90114756]
[1746868840702,0.30351316,658.95,657.88,0.90114756]
[1746868840902,0.30351316,658.95,657.89,0.90114756]
[1746868841100,0.30351316,658.95,657.9,0.90114756]
[1746868841298,0.30351316,658.95,657.82,0.26416068]
[1746868841299,0.30351316,658.95,657.91,0.90114756]
[1746868841504,0.30351316,658.95,657.92,0.90114756]
[1746868841703,0.30351316,658.95,657.93,0.90114756]
[1746868842004,0.30351316,658.95,657.94,0.90114756]
[1746868842206,0.30351316,658.95,657.95,0.90114756]
[1746868842504,0.30351316,658.95,657.96,0.90114756]
[1746868842704,0.30351316,658.95,657.97,0.90114756]
[1746868842904,0.30351316,658.95,657.98,0.90114756]
[1746868843106,0.30351316,658.95,657.99,0.90114756]
[1746868843303,0.30351316,658.95,658.0,0.90114756]
[1746868843500,0.30351316,658.95,658.01,0.90114756]
[1746868843702,0.30351316,658.95,658.02,0.90114756]
[1746868844005,0.30351316,658.95,658.03,0.90114756]
[1746868844201,0.30351316,658.95,658.04,0.90114756]
[1746868844405,0.30351316,658.95,658.05,0.90114756]
[1746868844603,0.30351316,658.95,658.06,0.90114756]
[1746868844802,0.30351316,658.95,658.07,0.90114756]
[1746868845006,0.30351316,658.95,658.08,0.90114756]
[1746868845200,0.30351316,658.95,658.09,0.90114756]
[1746868845401,0.30351316,658.95,658.1,0.90114756]
[1746868845602,0.30351316,658.95,658.11,0.90114756]
[1746868845906,0.30351316,658.95,658.12,0.90114756]
[1746868846102,0.30351316,658.95,657.97,0.2641256]
[1746868846307,0.30351316,658.95,657.98,0.90096057]
[1746868846506,0.30351316,658.95,657.99,0.90096057]
[1746868846703,0.30351316,658.95,658.0,0.90096928]
[1746868846906,0.30351316,658.95,658.01,0.90096928]
[1746868847202,0.30351316,658.95,658.02,0.90113724]
[1746868847402,0.30351316,658.95,657.97,0.2641256]
[1746868847604,0.30351316,658.95,657.98,0.90113573]
[1746868847801,0.30351316,658.95,657.99,0.90113573]
[1746868848006,0.30351316,658.95,658.0,0.90113573]
[1746868848203,0.30351316,658.95,658.01,0.90113573]
[1746868848407,0.30351316,658.95,658.02,0.90113573]
[1746868848606,0.30351316,658.95,657.99,0.26415767]
[1746868848808,0.30351316,658.95,658.0,0.90140505]
[1746868849111,0.30351316,658.95,658.01,0.90139724]
[1746868849307,0.30351316,658.95,658.02,0.90159416]
[1746868849607,0.30351316,658.95,657.99,0.26415767]
[1746868849809,0.30351316,658.95,658.0,0.90166148]
[1746868850007,0.30351316,658.95,657.99,0.26415767]
[1746868850210,0.30351316,658.95,658.0,0.90165913]
[1746868850505,0.30351316,658.95,657.99,0.26415767]
[1746868850710,0.30351316,658.95,658.0,0.90182948]
[1746868850907,0.30351316,658.95,657.99,0.26415767]
[1746868851211,0.30351316,658.95,658.0,0.90182951]
[1746868851411,0.30351316,658.95,658.01,0.90182951]
[1746868851611,0.30351316,658.95,657.99,0.26415767]
[1746868851811,0.30351316,658.95,658.0,0.90199428]
[1746868852111,0.30351316,658.95,658.01,0.90199428]
[1746868852310,0.30351316,658.95,658.02,0.90217767]
[1746868852513,0.30351316,658.95,657.99,0.26415767]
[1746868852711,0.30351316,658.95,658.0,0.90218368]
[1746868853011,0.30351316,658.95,658.01,0.90218368]
[1746868853211,0.30351316,658.95,658.02,0.90218368]
[1746868853411,0.30351316,658.95,658.03,0.90218368]
[1746868853608,0.30351316,658.95,657.99,0.26415767]
[1746868853807,0.30351316,658.95,658.0,0.90246011]
[1746868854011,0.30351316,658.95,658.01,0.90246011]
[1746868854210,0.30351316,658.95,658.02,0.90246011]
[1746868854411,0.30351316,658.95,658.03,0.90246011]
[1746868854714,0.30351316,658.95,658.0,0.2641687]
[1746868854912,0.30351316,658.95,658.01,0.90261195]
[1746868855112,0.30351316,658.95,658.02,0.90261195]
[1746868855312,0.30351316,658.95,658.03,0.90261195]